[Event "*** Titled Tuesday Blitz"]
[Site "Chess.com"]
[Date "2020.04.28"]
[Round "2"]
[White "Gurvich_Vitaly"]
[Black "StephenDedalus83"]
[Result "1-0"]
[WhiteElo "2549"]
[BlackElo "2790"]
[TimeControl "180+1"]
[EndTime "10:17:11 PDT"]
[Termination "Gurvich_Vitaly won by resignation"]

1. e4 {[%clk 0:03:00.9]} 1... c5 {[%clk 0:02:58.2]} 2. Nf3 {[%clk 0:03:00.5]}
2... Nc6 {[%clk 0:02:58.1]} 3. d4 {[%clk 0:03:00.7]} 3... cxd4 {[%clk 0:02:59]}
4. Nxd4 {[%clk 0:02:59.8]} 4... Qc7 {[%clk 0:02:59.6]} 5. Nc3 {[%clk 0:02:57.4]}
5... e6 {[%clk 0:03:00.1]} 6. Be3 {[%clk 0:02:46.7]} 6... a6 {[%clk 0:03:00.5]}
7. Qf3 {[%clk 0:02:40.9]} 7... Nf6 {[%clk 0:02:57.2]} 8. O-O-O {[%clk 0:02:40]}
8... h5 {[%clk 0:02:53.9]} 9. Nxc6 {[%clk 0:01:56.8]} 9... dxc6 {[%clk
0:02:53.2]} 10. Qg3 {[%clk 0:01:53]} 10... e5 {[%clk 0:02:37.4]} 11. f4 {[%clk
0:01:50.2]} 11... h4 {[%clk 0:02:33.7]} 12. Qf2 {[%clk 0:01:46.6]} 12... Ng4
{[%clk 0:02:33.3]} 13. Qf3 {[%clk 0:01:39.6]} 13... Nxe3 {[%clk 0:02:32.8]} 14.
Qxe3 {[%clk 0:01:40.5]} 14... exf4 {[%clk 0:02:33.2]} 15. Qd4 {[%clk 0:01:40.7]}
15... Be6 {[%clk 0:02:27.2]} 16. Bc4 {[%clk 0:01:36.8]} 16... Bxc4 {[%clk
0:02:25.7]} 17. Qxc4 {[%clk 0:01:37.7]} 17... Bd6 {[%clk 0:02:25.6]} 18. Ne2
{[%clk 0:01:18.3]} 18... O-O-O {[%clk 0:02:22.1]} 19. Nd4 {[%clk 0:01:18.3]}
19... g6 {[%clk 0:02:21.3]} 20. Nf3 {[%clk 0:01:17.9]} 20... h3 {[%clk
0:02:18.5]} 21. gxh3 {[%clk 0:01:14.2]} 21... Rh5 {[%clk 0:02:09.3]} 22. h4
{[%clk 0:01:13.5]} 22... Re8 {[%clk 0:02:08.8]} 23. Rhe1 {[%clk 0:01:07.5]}
23... Bc5 {[%clk 0:02:07.6]} 24. e5 {[%clk 0:01:03.1]} 24... Be3+ {[%clk
0:02:03.1]} 25. Kb1 {[%clk 0:01:03]} 25... Kb8 {[%clk 0:02:02.4]} 26. a3 {[%clk
0:01:01.6]} 26... Rhh8 {[%clk 0:01:58.2]} 27. Rd3 {[%clk 0:00:54.9]} 27... Re7
{[%clk 0:01:39.2]} 28. Red1 {[%clk 0:00:51.8]} 28... Qc8 {[%clk 0:01:38.3]} 29.
Rb3 {[%clk 0:00:36.7]} 29... Ka7 {[%clk 0:01:36.4]} 30. Rxe3 {[%clk 0:00:29.1]}
30... fxe3 {[%clk 0:01:36.2]} 31. Qc5+ {[%clk 0:00:29]} 31... Ka8 {[%clk
0:01:36.8]} 32. Qxe7 {[%clk 0:00:29]} 32... e2 {[%clk 0:01:36.6]} 33. Re1 {[%clk
0:00:27.3]} 33... Qf5 {[%clk 0:01:36.6]} 34. Qf6 {[%clk 0:00:23.8]} 34... Qe4
{[%clk 0:01:36.8]} 35. Ng5 {[%clk 0:00:13]} 35... Qxh4 {[%clk 0:01:35.7]} 36.
Rxe2 {[%clk 0:00:11.4]} 36... Qh5 {[%clk 0:01:32.1]} 37. Rd2 {[%clk 0:00:10.7]}
37... Re8 {[%clk 0:01:31]} 38. Rd8+ {[%clk 0:00:10.1]} 38... Rxd8 {[%clk
0:01:31.2]} 39. Qxd8+ {[%clk 0:00:11]} 39... Ka7 {[%clk 0:01:31.8]} 40. Qd4+
{[%clk 0:00:11.5]} 40... Ka8 {[%clk 0:01:29.7]} 41. Nxf7 {[%clk 0:00:11.8]}
41... Qf5 {[%clk 0:01:29.4]} 42. Nd6 {[%clk 0:00:10]} 42... Qf1+ {[%clk
0:01:29.2]} 43. Ka2 {[%clk 0:00:09.1]} 43... Qe2 {[%clk 0:01:29.6]} 44. Qb6
{[%clk 0:00:04.6]} 44... Qc4+ {[%clk 0:01:24.5]} 45. Nxc4 {[%clk 0:00:04.6]} 1-0

[Event "*** Titled Tuesday Blitz"]
[Site "Chess.com"]
[Date "2020.04.28"]
[Round "2"]
[White "annacramling"]
[Black "GasconJR"]
[Result "0-1"]
[WhiteElo "1932"]
[BlackElo "2602"]
[TimeControl "180+1"]
[EndTime "10:17:12 PDT"]
[Termination "GasconJR won on time"]

1. d4 {[%clk 0:03:00.9]} 1... Nf6 {[%clk 0:02:58.9]} 2. c4 {[%clk 0:03:00.7]}
2... c5 {[%clk 0:02:59]} 3. d5 {[%clk 0:03:00.6]} 3... g6 {[%clk 0:02:58.3]} 4.
Nc3 {[%clk 0:03:00.4]} 4... Bg7 {[%clk 0:02:53.7]} 5. e4 {[%clk 0:03:00.6]} 5...
d6 {[%clk 0:02:52.5]} 6. f4 {[%clk 0:02:56.2]} 6... e6 {[%clk 0:02:37.8]} 7. Nf3
{[%clk 0:02:53.7]} 7... O-O {[%clk 0:02:36.3]} 8. Bd3 {[%clk 0:02:28]} 8... exd5
{[%clk 0:02:34.2]} 9. cxd5 {[%clk 0:02:24.1]} 9... Bg4 {[%clk 0:02:34.3]} 10.
O-O {[%clk 0:02:23.9]} 10... Nbd7 {[%clk 0:02:34.3]} 11. Qe1 {[%clk 0:02:14.8]}
11... Re8 {[%clk 0:02:31.2]} 12. Qg3 {[%clk 0:02:08.4]} 12... Bxf3 {[%clk
0:02:30.5]} 13. Qxf3 {[%clk 0:02:08.2]} 13... Rc8 {[%clk 0:02:06.8]} 14. Nb5
{[%clk 0:01:51.5]} 14... c4 {[%clk 0:02:02.8]} 15. Nxa7 {[%clk 0:01:00]} 15...
cxd3 {[%clk 0:01:55]} 16. Nxc8 {[%clk 0:00:58.5]} 16... Qxc8 {[%clk 0:01:55.4]}
17. Qxd3 {[%clk 0:00:58.1]} 17... Nxe4 {[%clk 0:01:54]} 18. Be3 {[%clk
0:00:51.8]} 18... Ndc5 {[%clk 0:01:53.7]} 19. Qa3 {[%clk 0:00:39.4]} 19... Qf5
{[%clk 0:01:35.8]} 20. Rae1 {[%clk 0:00:30.9]} 20... Qxd5 {[%clk 0:01:29.7]} 21.
Kh1 {[%clk 0:00:16.5]} 21... f5 {[%clk 0:01:26.5]} 22. Bxc5 {[%clk 0:00:11.5]}
22... Qxc5 {[%clk 0:01:20.8]} 23. Qb3+ {[%clk 0:00:11.4]} 23... d5 {[%clk
0:01:15.5]} 24. Qf3 {[%clk 0:00:04.2]} 24... Kf7 {[%clk 0:01:06.9]} 25. Rc1
{[%clk 0:00:03.5]} 25... Qd4 {[%clk 0:00:58]} 26. Qb3 {[%clk 0:00:03]} 26... Re7
{[%clk 0:00:53.7]} 27. Qf3 {[%clk 0:00:02.4]} 27... Nd2 {[%clk 0:00:50.6]} 28.
Qd1 {[%clk 0:00:01.7]} 28... Nxf1 {[%clk 0:00:49.5]} 29. Qxd4 {[%clk 0:00:01.7]}
29... Bxd4 {[%clk 0:00:50.4]} 30. Rxf1 {[%clk 0:00:01.8]} 30... Re2 {[%clk
0:00:50.1]} 31. Rd1 {[%clk 0:00:01.7]} 31... Bxb2 {[%clk 0:00:49.3]} 0-1

[Event "*** Titled Tuesday Blitz"]
[Site "Chess.com"]
[Date "2020.04.28"]
[Round "2"]
[White "karwowskikacper"]
[Black "Shield12"]
[Result "0-1"]
[WhiteElo "2343"]
[BlackElo "2845"]
[TimeControl "180+1"]
[EndTime "10:17:13 PDT"]
[Termination "Shield12 won by resignation"]

1. e4 {[%clk 0:03:00.9]} 1... c5 {[%clk 0:02:57.6]} 2. Nf3 {[%clk 0:03:00.7]}
2... Nc6 {[%clk 0:02:57.8]} 3. Nc3 {[%clk 0:03:00.5]} 3... Nf6 {[%clk
0:02:57.8]} 4. d4 {[%clk 0:03:00.8]} 4... cxd4 {[%clk 0:02:58.7]} 5. Nxd4 {[%clk
0:03:01.6]} 5... d6 {[%clk 0:02:58.8]} 6. Bg5 {[%clk 0:03:00.8]} 6... e6 {[%clk
0:02:58.9]} 7. Qd2 {[%clk 0:03:00.7]} 7... a6 {[%clk 0:02:59.4]} 8. f4 {[%clk
0:03:00.6]} 8... h6 {[%clk 0:02:58.4]} 9. Bxf6 {[%clk 0:02:59.4]} 9... Qxf6
{[%clk 0:02:59.3]} 10. Nf3 {[%clk 0:03:00.1]} 10... Qd8 {[%clk 0:02:58.8]} 11.
O-O-O {[%clk 0:02:59.5]} 11... Bd7 {[%clk 0:02:58.6]} 12. Bd3 {[%clk 0:02:56.1]}
12... Be7 {[%clk 0:02:58]} 13. f5 {[%clk 0:02:55.1]} 13... Qa5 {[%clk
0:02:55.8]} 14. fxe6 {[%clk 0:02:52.9]} 14... fxe6 {[%clk 0:02:56.7]} 15. g4
{[%clk 0:02:49.7]} 15... O-O-O {[%clk 0:02:56]} 16. h4 {[%clk 0:02:49]} 16...
Rhf8 {[%clk 0:02:55.1]} 17. Rdf1 {[%clk 0:02:48.1]} 17... Ne5 {[%clk 0:02:52.4]}
18. Nxe5 {[%clk 0:02:46.8]} 18... Qxe5 {[%clk 0:02:53.3]} 19. Rxf8 {[%clk
0:02:41.9]} 19... Rxf8 {[%clk 0:02:54.2]} 20. Kb1 {[%clk 0:02:42.6]} 20... Bc6
{[%clk 0:02:51.5]} 21. Qe3 {[%clk 0:02:38.1]} 21... Rf4 {[%clk 0:02:47.5]} 22.
g5 {[%clk 0:02:33.1]} 22... hxg5 {[%clk 0:02:36.4]} 23. hxg5 {[%clk 0:02:34]}
23... Bxg5 {[%clk 0:02:37]} 24. Qa7 {[%clk 0:02:33.2]} 24... Rh4 {[%clk
0:02:28.7]} 25. Rxh4 {[%clk 0:02:17.6]} 25... Bxh4 {[%clk 0:02:28.7]} 26. Qa8+
{[%clk 0:02:16.6]} 26... Kc7 {[%clk 0:02:26.8]} 27. Qf8 {[%clk 0:02:14]} 27...
Bf6 {[%clk 0:02:16.8]} 28. a4 {[%clk 0:02:13.2]} 28... Qc5 {[%clk 0:02:10.1]}
29. Qf7+ {[%clk 0:02:11.2]} 29... Bd7 {[%clk 0:02:10.2]} 30. Qg6 {[%clk
0:02:03.2]} 30... Bxc3 {[%clk 0:02:09.3]} 31. bxc3 {[%clk 0:02:04.1]} 31... Qxc3
{[%clk 0:02:09.8]} 32. a5 {[%clk 0:01:58.6]} 32... Qe1+ {[%clk 0:01:55.4]} 33.
Kb2 {[%clk 0:01:58.1]} 33... Qb4+ {[%clk 0:01:55.9]} 34. Kc1 {[%clk 0:01:57]}
34... Qd4 {[%clk 0:01:53.6]} 35. Kd2 {[%clk 0:01:53.7]} 35... Qe5 {[%clk
0:01:52.6]} 36. Ke2 {[%clk 0:01:50]} 36... Qxa5 {[%clk 0:01:48.2]} 37. Qxg7
{[%clk 0:01:50]} 37... Qe5 {[%clk 0:01:47.1]} 38. Qg1 {[%clk 0:01:48.1]} 38...
a5 {[%clk 0:01:45.4]} 39. Qa7 {[%clk 0:01:47]} 39... Qc5 {[%clk 0:01:43]} 40.
Qa8 {[%clk 0:01:43.4]} 40... a4 {[%clk 0:01:42.9]} 41. Kd2 {[%clk 0:01:42.8]}
41... a3 {[%clk 0:01:41.1]} 42. e5 {[%clk 0:01:36.3]} 42... dxe5 {[%clk
0:01:39.9]} 43. Kc1 {[%clk 0:01:21.3]} 43... e4 {[%clk 0:01:31.2]} 44. Bxe4
{[%clk 0:01:17.1]} 44... Qe3+ {[%clk 0:01:30.5]} 45. Kb1 {[%clk 0:01:17.2]}
45... Qxe4 {[%clk 0:01:23.9]} 46. Qxa3 {[%clk 0:01:17]} 46... Qd5 {[%clk
0:01:21.5]} 47. Qc3+ {[%clk 0:01:15.4]} 47... Bc6 {[%clk 0:01:21.1]} 48. Qg7+
{[%clk 0:01:15.2]} 48... Kb6 {[%clk 0:01:20.9]} 49. Qe7 {[%clk 0:01:13.9]} 49...
e5 {[%clk 0:01:20.4]} 50. Kc1 {[%clk 0:01:11.9]} 50... e4 {[%clk 0:01:20.6]} 51.
Qb4+ {[%clk 0:01:11.1]} 51... Qb5 {[%clk 0:01:17.1]} 52. Qd4+ {[%clk 0:01:10.8]}
52... Qc5 {[%clk 0:01:17.2]} 53. Qd8+ {[%clk 0:01:10.1]} 53... Ka7 {[%clk
0:01:16.3]} 54. Qh8 {[%clk 0:01:03.2]} 54... e3 {[%clk 0:01:13.6]} 55. Qa1+
{[%clk 0:01:03.2]} 55... Kb6 {[%clk 0:01:12.8]} 56. Qb2+ {[%clk 0:01:02.7]}
56... Bb5 {[%clk 0:01:09.3]} 57. Qf6+ {[%clk 0:01:02.4]} 57... Ka7 {[%clk
0:01:09.3]} 58. Qa1+ {[%clk 0:01:01.2]} 58... Ba6 {[%clk 0:01:09.5]} 0-1

[Event "*** Titled Tuesday Blitz"]
[Site "Chess.com"]
[Date "2020.04.28"]
[Round "2"]
[White "JulianProleiko"]
[Black "gmgamil"]
[Result "0-1"]
[WhiteElo "2468"]
[BlackElo "2698"]
[TimeControl "180+1"]
[EndTime "10:17:15 PDT"]
[Termination "gmgamil won by resignation"]

1. e4 {[%clk 0:03:00.9]} 1... e5 {[%clk 0:02:59.5]} 2. Nc3 {[%clk 0:02:59.2]}
2... Nf6 {[%clk 0:02:59.1]} 3. g3 {[%clk 0:02:59.4]} 3... d5 {[%clk 0:02:59.2]}
4. exd5 {[%clk 0:02:58.8]} 4... Nxd5 {[%clk 0:03:00.1]} 5. Bg2 {[%clk
0:02:58.7]} 5... Nxc3 {[%clk 0:03:01]} 6. bxc3 {[%clk 0:02:58.9]} 6... Nc6
{[%clk 0:03:01.9]} 7. Ne2 {[%clk 0:02:58.8]} 7... Be6 {[%clk 0:03:01.7]} 8. O-O
{[%clk 0:02:58.6]} 8... Bd5 {[%clk 0:03:01.9]} 9. Rb1 {[%clk 0:02:50.6]} 9...
Bxg2 {[%clk 0:03:01.2]} 10. Kxg2 {[%clk 0:02:50.7]} 10... Qd5+ {[%clk
0:03:01.8]} 11. Kg1 {[%clk 0:02:51]} 11... O-O-O {[%clk 0:03:02.5]} 12. d3
{[%clk 0:02:48.6]} 12... h5 {[%clk 0:02:55.7]} 13. c4 {[%clk 0:02:47.8]} 13...
Qd7 {[%clk 0:02:47]} 14. Nc3 {[%clk 0:02:38]} 14... h4 {[%clk 0:02:37.8]} 15.
Qf3 {[%clk 0:02:36.7]} 15... f5 {[%clk 0:02:29.5]} 16. Bg5 {[%clk 0:02:28.1]}
16... Re8 {[%clk 0:02:22.4]} 17. Rfe1 {[%clk 0:02:17]} 17... hxg3 {[%clk
0:02:18]} 18. hxg3 {[%clk 0:02:16.4]} 18... f4 {[%clk 0:01:58.9]} 19. Nb5 {[%clk
0:02:03.4]} 19... Kb8 {[%clk 0:01:50.3]} 20. d4 {[%clk 0:01:59.9]} 20... a6
{[%clk 0:01:31.2]} 21. d5 {[%clk 0:01:22.3]} 21... Nb4 {[%clk 0:01:27.3]} 22. c3
{[%clk 0:00:56.2]} 22... axb5 {[%clk 0:01:12.5]} 23. cxb4 {[%clk 0:00:55]} 23...
bxc4 {[%clk 0:01:12.8]} 24. gxf4 {[%clk 0:00:35.8]} 24... Bd6 {[%clk 0:01:02.3]}
25. Re4 {[%clk 0:00:19.9]} 25... exf4 {[%clk 0:00:47.1]} 26. Rxc4 {[%clk
0:00:18.7]} 26... Rh3 {[%clk 0:00:44.3]} 27. Qd1 {[%clk 0:00:10.5]} 27... Reh8
{[%clk 0:00:43.1]} 28. Kg2 {[%clk 0:00:09.2]} 28... f3+ {[%clk 0:00:42.2]} 0-1

[Event "*** Titled Tuesday Blitz"]
[Site "Chess.com"]
[Date "2020.04.28"]
[Round "2"]
[White "dennisodessa"]
[Black "ChessicallyInclined"]
[Result "1-0"]
[WhiteElo "2314"]
[BlackElo "2550"]
[TimeControl "180+1"]
[EndTime "10:17:16 PDT"]
[Termination "dennisodessa won by resignation"]

1. d4 {[%clk 0:03:00]} 1... Nf6 {[%clk 0:02:58.6]} 2. c4 {[%clk 0:03:00.1]} 2...
e6 {[%clk 0:02:58.7]} 3. Nc3 {[%clk 0:03:00.5]} 3... Bb4 {[%clk 0:02:55.4]} 4.
Qc2 {[%clk 0:03:00.8]} 4... d5 {[%clk 0:02:43.9]} 5. a3 {[%clk 0:03:00.5]} 5...
Bxc3+ {[%clk 0:02:42.9]} 6. Qxc3 {[%clk 0:03:01.4]} 6... O-O {[%clk 0:02:43.1]}
7. Bg5 {[%clk 0:03:01.4]} 7... h6 {[%clk 0:02:43.1]} 8. Bh4 {[%clk 0:02:59]}
8... c5 {[%clk 0:02:42.2]} 9. dxc5 {[%clk 0:02:57.1]} 9... d4 {[%clk 0:02:41.2]}
10. Qc2 {[%clk 0:02:56.5]} 10... Nc6 {[%clk 0:02:39.9]} 11. b4 {[%clk
0:02:54.9]} 11... a5 {[%clk 0:02:38.8]} 12. b5 {[%clk 0:02:54.4]} 12... Ne5
{[%clk 0:02:36.8]} 13. Nf3 {[%clk 0:02:53.1]} 13... Ng6 {[%clk 0:02:31.5]} 14.
Bg3 {[%clk 0:02:53.2]} 14... Re8 {[%clk 0:02:17.8]} 15. Ne5 {[%clk 0:02:51.5]}
15... Nxe5 {[%clk 0:02:14.3]} 16. Bxe5 {[%clk 0:02:52.4]} 16... Ng4 {[%clk
0:02:14.5]} 17. Bd6 {[%clk 0:02:47]} 17... e5 {[%clk 0:02:14.1]} 18. h3 {[%clk
0:02:33.7]} 18... Nf6 {[%clk 0:01:54.4]} 19. g3 {[%clk 0:02:32.8]} 19... e4
{[%clk 0:01:45.9]} 20. Bg2 {[%clk 0:02:26.6]} 20... d3 {[%clk 0:01:41.6]} 21.
Qb2 {[%clk 0:02:16.6]} 21... e3 {[%clk 0:01:33.2]} 22. O-O {[%clk 0:01:53.4]}
22... exf2+ {[%clk 0:01:16.4]} 23. Rxf2 {[%clk 0:01:53.9]} 23... dxe2 {[%clk
0:01:15.3]} 24. Rxe2 {[%clk 0:01:52.9]} 24... Rxe2 {[%clk 0:01:12.2]} 25. Qxe2
{[%clk 0:01:53.8]} 25... Ne8 {[%clk 0:01:03]} 26. Rd1 {[%clk 0:01:02.1]} 26...
Nxd6 {[%clk 0:00:56.8]} 27. cxd6 {[%clk 0:01:03]} 27... Qb6+ {[%clk 0:00:54.1]}
28. Qf2 {[%clk 0:01:00.4]} 28... Qd8 {[%clk 0:00:41.4]} 29. c5 {[%clk
0:00:53.5]} 29... Rb8 {[%clk 0:00:38.7]} 30. c6 {[%clk 0:00:50.5]} 30... bxc6
{[%clk 0:00:38.8]} 31. bxc6 {[%clk 0:00:51.4]} 31... Rb3 {[%clk 0:00:25.6]} 32.
d7 {[%clk 0:00:43.4]} 32... Ba6 {[%clk 0:00:24.5]} 33. c7 {[%clk 0:00:42.2]}
33... Qxc7 {[%clk 0:00:24.7]} 1-0

[Event "*** Titled Tuesday Blitz"]
[Site "Chess.com"]
[Date "2020.04.28"]
[Round "2"]
[White "SiddharthGMJagadeesh"]
[Black "vinodbhagwat1976"]
[Result "1-0"]
[WhiteElo "2503"]
[BlackElo "2260"]
[TimeControl "180+1"]
[EndTime "10:17:18 PDT"]
[Termination "SiddharthGMJagadeesh won by resignation"]

1. e4 {[%clk 0:02:59.5]} 1... e5 {[%clk 0:02:58.5]} 2. Nf3 {[%clk 0:02:59.4]}
2... Nc6 {[%clk 0:02:58.6]} 3. Bb5 {[%clk 0:02:59.1]} 3... a6 {[%clk 0:02:57.4]}
4. Ba4 {[%clk 0:02:58.5]} 4... Nf6 {[%clk 0:02:57.7]} 5. d3 {[%clk 0:02:58.4]}
5... d6 {[%clk 0:02:56.3]} 6. O-O {[%clk 0:02:56.2]} 6... g6 {[%clk 0:02:56.2]}
7. c3 {[%clk 0:02:55.7]} 7... Bg7 {[%clk 0:02:56.2]} 8. Re1 {[%clk 0:02:55.4]}
8... O-O {[%clk 0:02:54.7]} 9. Nbd2 {[%clk 0:02:55.3]} 9... b5 {[%clk
0:02:52.1]} 10. Bc2 {[%clk 0:02:48.7]} 10... Nb8 {[%clk 0:02:48.5]} 11. a4
{[%clk 0:02:44.7]} 11... Bb7 {[%clk 0:02:42.4]} 12. b4 {[%clk 0:02:44.2]} 12...
Nbd7 {[%clk 0:02:41]} 13. Nb3 {[%clk 0:02:43.7]} 13... c5 {[%clk 0:02:34.3]} 14.
Na5 {[%clk 0:02:34.1]} 14... Qc7 {[%clk 0:02:26.5]} 15. Nxb7 {[%clk 0:02:20.5]}
15... Qxb7 {[%clk 0:02:26]} 16. Ba3 {[%clk 0:02:21]} 16... cxb4 {[%clk
0:02:25.3]} 17. Bxb4 {[%clk 0:02:21.9]} 17... Qc6 {[%clk 0:01:58]} 18. d4 {[%clk
0:02:10.8]} 18... a5 {[%clk 0:01:40.8]} 19. axb5 {[%clk 0:02:08.7]} 19... Qxb5
{[%clk 0:01:34.7]} 20. Bxd6 {[%clk 0:02:08.3]} 20... Rfe8 {[%clk 0:01:30.4]} 21.
dxe5 {[%clk 0:02:06]} 21... Ng4 {[%clk 0:01:22.3]} 22. Nd4 {[%clk 0:02:02]}
22... Qc4 {[%clk 0:01:12.9]} 23. Qxg4 {[%clk 0:01:55.6]} 23... Nxe5 {[%clk
0:01:10.6]} 24. Qg3 {[%clk 0:01:36.2]} 24... Rad8 {[%clk 0:01:00.9]} 25. Bb3
{[%clk 0:01:26.4]} 25... Qc8 {[%clk 0:00:49.4]} 26. Bxe5 {[%clk 0:01:20.9]}
26... Bxe5 {[%clk 0:00:46.9]} 27. Qf3 {[%clk 0:01:19.9]} 27... Re7 {[%clk
0:00:35.9]} 28. Rxa5 {[%clk 0:01:11.9]} 28... Qc7 {[%clk 0:00:24.9]} 29. Rd5
{[%clk 0:01:07.2]} 29... Bxh2+ {[%clk 0:00:19.1]} 30. Kh1 {[%clk 0:01:07.3]}
30... Rde8 {[%clk 0:00:16.9]} 31. g3 {[%clk 0:01:02.6]} 31... h5 {[%clk
0:00:11.2]} 32. Kxh2 {[%clk 0:01:02.1]} 32... h4 {[%clk 0:00:10.8]} 33. Qf4
{[%clk 0:01:00.4]} 33... Qxf4 {[%clk 0:00:08.9]} 34. gxf4 {[%clk 0:00:59.8]} 1-0

[Event "*** Titled Tuesday Blitz"]
[Site "Chess.com"]
[Date "2020.04.28"]
[Round "2"]
[White "Hikaru"]
[Black "Shuvalov"]
[Result "1-0"]
[WhiteElo "3232"]
[BlackElo "2465"]
[TimeControl "180+1"]
[EndTime "10:17:19 PDT"]
[Termination "Hikaru won by checkmate"]

1. Nf3 {[%clk 0:03:00.9]} 1... d5 {[%clk 0:02:59.9]} 2. b3 {[%clk 0:02:55.4]}
2... Nf6 {[%clk 0:02:59.1]} 3. Bb2 {[%clk 0:02:52.7]} 3... Bf5 {[%clk
0:02:59.1]} 4. g3 {[%clk 0:02:50.2]} 4... e6 {[%clk 0:02:59.2]} 5. Nh4 {[%clk
0:02:43.9]} 5... Be4 {[%clk 0:02:57.9]} 6. f3 {[%clk 0:02:44.2]} 6... Bg6 {[%clk
0:02:57.9]} 7. Nxg6 {[%clk 0:02:44.6]} 7... hxg6 {[%clk 0:02:58.8]} 8. Bg2
{[%clk 0:02:45.1]} 8... Be7 {[%clk 0:02:56.2]} 9. e4 {[%clk 0:02:44.6]} 9... O-O
{[%clk 0:02:52.3]} 10. e5 {[%clk 0:02:44.3]} 10... Nfd7 {[%clk 0:02:47.8]} 11.
f4 {[%clk 0:02:44.7]} 11... c5 {[%clk 0:02:45]} 12. h4 {[%clk 0:02:44.7]} 12...
Nc6 {[%clk 0:02:30]} 13. d3 {[%clk 0:02:44.7]} 13... Rc8 {[%clk 0:02:23.1]} 14.
Nd2 {[%clk 0:02:44.3]} 14... Nd4 {[%clk 0:02:16]} 15. c4 {[%clk 0:02:38.9]}
15... Nb6 {[%clk 0:02:09.8]} 16. Bxd4 {[%clk 0:02:36.6]} 16... cxd4 {[%clk
0:02:08.5]} 17. O-O {[%clk 0:02:37.5]} 17... Qd7 {[%clk 0:01:51.3]} 18. Nf3
{[%clk 0:02:34.8]} 18... dxc4 {[%clk 0:01:49.1]} 19. bxc4 {[%clk 0:02:35.7]}
19... Na4 {[%clk 0:01:45.2]} 20. Qd2 {[%clk 0:02:33.1]} 20... Nc5 {[%clk
0:01:41.3]} 21. Rab1 {[%clk 0:02:32.5]} 21... Rfd8 {[%clk 0:01:40.2]} 22. Kh2
{[%clk 0:02:32.7]} 22... Rb8 {[%clk 0:01:38.1]} 23. Rb5 {[%clk 0:02:27.3]} 23...
b6 {[%clk 0:01:34.2]} 24. Rfb1 {[%clk 0:02:26.9]} 24... Na4 {[%clk 0:01:30.5]}
25. R5b3 {[%clk 0:02:27]} 25... Nc5 {[%clk 0:01:29.9]} 26. R3b2 {[%clk
0:02:25.6]} 26... Na4 {[%clk 0:01:30]} 27. Rc2 {[%clk 0:02:26.3]} 27... Nc5
{[%clk 0:01:29]} 28. Qe2 {[%clk 0:02:16.7]} 28... Qa4 {[%clk 0:01:25.1]} 29.
Rcb2 {[%clk 0:02:12.4]} 29... Qd7 {[%clk 0:01:24.4]} 30. Rf1 {[%clk 0:02:07.4]}
30... Na4 {[%clk 0:01:22.5]} 31. Rc2 {[%clk 0:02:07.9]} 31... Nc5 {[%clk
0:01:21.1]} 32. Nd2 {[%clk 0:02:07.4]} 32... Qa4 {[%clk 0:01:19.5]} 33. Ne4
{[%clk 0:02:06.3]} 33... Qa3 {[%clk 0:01:12.2]} 34. Nxc5 {[%clk 0:02:01.4]}
34... bxc5 {[%clk 0:01:13.1]} 35. Be4 {[%clk 0:02:01.4]} 35... Rb6 {[%clk
0:01:01.8]} 36. h5 {[%clk 0:02:00.6]} 36... g5 {[%clk 0:00:57.9]} 37. f5 {[%clk
0:01:57.5]} 37... exf5 {[%clk 0:00:56.7]} 38. Rxf5 {[%clk 0:01:56.6]} 38... Rdb8
{[%clk 0:00:52.4]} 39. Rf2 {[%clk 0:01:54.4]} 39... Kh8 {[%clk 0:00:30.6]} 40.
Qf3 {[%clk 0:01:50.8]} 40... Rb2 {[%clk 0:00:22.8]} 41. Qxf7 {[%clk 0:01:25.5]}
41... Rxc2 {[%clk 0:00:15]} 42. Rxc2 {[%clk 0:01:26.4]} 42... Qa6 {[%clk
0:00:02.4]} 43. Qxe7 {[%clk 0:01:23.6]} 43... Qh6 {[%clk 0:00:02.4]} 44. Bg6
{[%clk 0:01:23.5]} 44... Rg8 {[%clk 0:00:01.9]} 45. Qf7 {[%clk 0:01:22.5]} 45...
Rb8 {[%clk 0:00:02.4]} 46. Rf2 {[%clk 0:01:22.1]} 46... g4 {[%clk 0:00:02.8]}
47. Qf8+ {[%clk 0:01:21.6]} 47... Rxf8 {[%clk 0:00:02.8]} 48. Rxf8# {[%clk
0:01:22.5]} 1-0

[Event "*** Titled Tuesday Blitz"]
[Site "Chess.com"]
[Date "2020.04.28"]
[Round "2"]
[White "ShieldingOff"]
[Black "Nastya_Rakhmangulova"]
[Result "1-0"]
[WhiteElo "2027"]
[BlackElo "2356"]
[TimeControl "180+1"]
[EndTime "10:17:20 PDT"]
[Termination "ShieldingOff won by resignation"]

1. d4 {[%clk 0:03:00.9]} 1... d5 {[%clk 0:03:00]} 2. Nf3 {[%clk 0:02:59.7]} 2...
Nf6 {[%clk 0:02:59.6]} 3. g3 {[%clk 0:03:00]} 3... g6 {[%clk 0:02:55.8]} 4. Bg2
{[%clk 0:02:59.9]} 4... Bg7 {[%clk 0:02:56.3]} 5. O-O {[%clk 0:03:00.2]} 5...
O-O {[%clk 0:02:56.1]} 6. c4 {[%clk 0:02:59.9]} 6... c6 {[%clk 0:02:56.4]} 7.
Nc3 {[%clk 0:02:57.7]} 7... dxc4 {[%clk 0:02:55.5]} 8. a4 {[%clk 0:02:56.7]}
8... Bf5 {[%clk 0:02:43.1]} 9. Ne5 {[%clk 0:02:54.8]} 9... Be6 {[%clk
0:02:36.6]} 10. e3 {[%clk 0:02:41]} 10... Nbd7 {[%clk 0:02:36]} 11. Nxd7 {[%clk
0:02:32.5]} 11... Qxd7 {[%clk 0:02:34.3]} 12. Qe2 {[%clk 0:02:26.9]} 12... Rad8
{[%clk 0:02:31.4]} 13. Bd2 {[%clk 0:02:23.6]} 13... b5 {[%clk 0:02:30.6]} 14.
axb5 {[%clk 0:02:22.9]} 14... cxb5 {[%clk 0:02:31.5]} 15. Ra5 {[%clk 0:02:08.7]}
15... b4 {[%clk 0:02:01.1]} 16. Ne4 {[%clk 0:01:45.8]} 16... Nxe4 {[%clk
0:01:39.1]} 17. Bxe4 {[%clk 0:01:44.2]} 17... Rc8 {[%clk 0:01:40]} 18. Bxb4
{[%clk 0:01:34.9]} 18... Bg4 {[%clk 0:01:36.2]} 19. Qd2 {[%clk 0:01:27.3]} 19...
Bh3 {[%clk 0:01:33.2]} 20. Rfa1 {[%clk 0:01:25.8]} 20... Rc7 {[%clk 0:01:31.1]}
21. Bc5 {[%clk 0:01:18]} 21... Qg4 {[%clk 0:01:23.6]} 22. Bh1 {[%clk 0:01:02.8]}
22... Rd8 {[%clk 0:01:17.7]} 23. Bxa7 {[%clk 0:00:57]} 23... e5 {[%clk
0:01:17.8]} 24. Bb6 {[%clk 0:00:55]} 24... exd4 {[%clk 0:01:14.7]} 25. Bxc7
{[%clk 0:00:53.7]} 25... Rc8 {[%clk 0:01:14.1]} 26. Ra8 {[%clk 0:00:52]} 26...
dxe3 {[%clk 0:01:06.5]} 27. Qxe3 {[%clk 0:00:40.1]} 27... Bf8 {[%clk 0:00:53.6]}
28. Rxc8 {[%clk 0:00:31.2]} 28... Qxc8 {[%clk 0:00:53]} 29. Be5 {[%clk
0:00:26.1]} 29... Qf5 {[%clk 0:00:46.7]} 30. Bc3 {[%clk 0:00:22]} 30... h5
{[%clk 0:00:32.8]} 31. Qd4 {[%clk 0:00:20.6]} 31... f6 {[%clk 0:00:26.5]} 32.
Qd5+ {[%clk 0:00:20.8]} 32... Qxd5 {[%clk 0:00:24.9]} 1-0